fUSD/lending_fUSD_20250629
["ID","MTS","AMOUNT","RATE_DAILY","PERIOD"]
[368486422,1751190692107,-490.0,0.00028493,3]
[368486423,1751190692116,-1923.32,0.00028493,3]
[368486424,1751190692126,-490.0,0.00028493,3]
[368486425,1751190692136,-1194.57,0.00028493,3]
[368486426,1751190692146,-2090.18,0.00028493,3]
[368486427,1751190692156,-830.46,0.00028493,3]
[368486428,1751190692166,-520.04,0.00028493,3]
[368486429,1751190692175,-1213.82,0.00028493,3]
[368486430,1751190692185,-371.85557959,0.00028515,2]
[368486431,1751190692195,-1000.0,0.00028521,5]
[368486432,1751190692204,-150.0,0.00028551,2]
[368486433,1751190692214,-21247.67738404,0.00028551,2]
[368486434,1751190692224,-150.0,0.00028551,2]
[368486435,1751190692236,-5742.16056794,0.00028551,2]
[368486436,1751190692261,-2043.46130184,0.00028555,19]
[368486437,1751190692287,-168.0,0.00028559,2]
[368486438,1751190692311,-375.0,0.00028599,7]
[368486439,1751190692542,-211.0,0.0002863,2]
[368486440,1751190692554,-214.0,0.0002863,2]
[368486441,1751190692564,-215.0738,0.0002865,2]
[368486442,1751190692574,-239.0315191,0.00028667,2]
[368486443,1751190692583,-7853.2076174,0.00028667,2]
[368486444,1751190692592,-49825.0022658,0.00028667,2]
[368486445,1751190692601,-10473.6444281,0.0002868,2]
[368486446,1751190692610,-20000.11237407,0.000287,2]
[368486447,1751190692620,-479.52259878,0.00028706,2]
[368486448,1751190692630,-1727.06481,0.0002873,2]
[368486449,1751190692640,-5903.9779076,0.00028747,2]
[368486450,1751190692651,-371.85557959,0.00028758,2]
[368486451,1751190692661,-2043.46130184,0.00028762,19]
[368486452,1751190692670,-500.0,0.00028766,7]
[368486453,1751190692679,-490.0,0.00028766,3]
[368486454,1751190692690,-590.68,0.00028766,3]
[368486455,1751190692699,-150.0,0.00028766,2]
[368486456,1751190692709,-281.10545513,0.00028766,2]
[368486457,1751190692718,-802.0,0.00028767,3]
[368486458,1751190692727,-500.0,0.00028767,3]
[368486459,1751190692737,-500.0,0.00028767,3]
[368486460,1751190692747,-500.0,0.00028767,3]
[368486461,1751190692757,-346.57163631,0.00028767,3]
[368486462,1751190692766,-500.0,0.00028767,3]
[368486463,1751190692775,-453.0,0.00028767,3]
[368486464,1751190692785,-500.0,0.00028767,3]
[368486465,1751190692795,-600.46,0.00028767,3]
[368486466,1751190692804,-490.0,0.00028767,3]
[368486467,1751190692814,-490.0,0.00028767,3]
[368486468,1751190692824,-737.29,0.00028767,3]
[368486469,1751190692833,-737.29,0.00028767,3]
[368486470,1751190692843,-490.0,0.00028767,3]
[368486471,1751190692852,-490.0,0.00028767,3]
[368486472,1751190692862,-542.33,0.00028767,3]
[368486473,1751190692871,-452.06120724,0.00028767,3]
[368486474,1751190692881,-847.37,0.00028767,3]
[368486475,1751190692890,-490.0,0.00028767,3]
[368486476,1751190692900,-490.0,0.00028767,3]
[368486477,1751190692909,-490.0,0.00028767,3]
[368486478,1751190692919,-490.0,0.00028767,3]
[368486479,1751190692929,-490.0,0.00028767,3]
[368486480,1751190692938,-490.0,0.00028767,3]
[368486481,1751190692949,-490.0,0.00028767,3]
[368486482,1751190692959,-948.9,0.00028767,3]
[368486483,1751190692969,-667.1,0.00028767,3]
[368486484,1751190692979,-490.0,0.00028767,3]
[368486485,1751190692989,-513.09,0.00028767,3]
[368486486,1751190692999,-490.0,0.00028767,3]
[368486487,1751190693009,-490.0,0.00028767,3]
[368486488,1751190693018,-978.74,0.00028767,3]
[368486489,1751190693028,-642.29,0.00028767,3]
[368486490,1751190693038,-490.0,0.00028767,3]
[368486491,1751190693049,-490.0,0.00028767,3]
[368486492,1751190693059,-490.0,0.00028767,3]
[368486493,1751190693070,-1186.44,0.00028767,3]
[368486494,1751190693080,-490.0,0.00028767,3]
[368486495,1751190693090,-490.0,0.00028767,3]
[368486496,1751190693100,-490.0,0.00028767,3]
[368486497,1751190693111,-2554.302964,0.00028767,3]
[368486498,1751190693121,-853.16,0.00028767,3]
[368486499,1751190693132,-490.0,0.00028767,3]
[368486500,1751190693142,-490.0,0.00028767,3]
[368486501,1751190693152,-2816.157543,0.00028767,3]
[368486502,1751190693163,-490.0,0.00028767,3]
[368486503,1751190693174,-490.0,0.00028767,3]
[368486504,1751190693184,-490.0,0.00028767,3]
[368486505,1751190693194,-2200.380726,0.00028767,3]
[368486506,1751190693205,-490.0,0.00028767,3]
[368486507,1751190693215,-500.85,0.00028767,3]
[368486508,1751190693225,-392.680419,0.00028767,3]
[368486509,1751190693235,-490.0,0.00028767,3]
[368486510,1751190693245,-887.72,0.00028767,3]
[368486511,1751190693255,-490.0,0.00028767,3]
[368486512,1751190693266,-490.0,0.00028767,3]
[368486513,1751190693276,-153.102854,0.00028767,3]
[368486514,1751190693286,-656.47,0.00028767,3]
[368486515,1751190693296,-556.18,0.00028767,3]
[368486516,1751190693306,-571.97,0.00028767,3]
[368486517,1751190693317,-490.0,0.00028767,3]
[368486518,1751190693328,-858.42,0.00028767,3]
[368486519,1751190693340,-490.0,0.00028767,3]
[368486520,1751190693350,-648.74,0.00028767,3]
[368486521,1751190693360,-490.0,0.00028767,3]
[368486522,1751190693370,-490.0,0.00028767,3]
[368486523,1751190693381,-1167.71,0.00028767,3]
[368486524,1751190693390,-167.777922,0.00028767,3]
[368486525,1751190693400,-642.42,0.00028767,3]
[368486526,1751190693410,-490.0,0.00028767,3]
[368486527,1751190693421,-523.68,0.00028767,3]
[368486528,1751190693431,-490.0,0.00028767,3]
[368486529,1751190693441,-490.0,0.00028767,3]
[368486530,1751190693451,-502.17016736,0.00028767,3]
[368486531,1751190693461,-490.0,0.00028767,3]
[368486532,1751190693471,-490.0,0.00028767,3]
[368486533,1751190693481,-625.75,0.00028767,3]
[368486534,1751190693491,-490.0,0.00028767,3]
[368486535,1751190693500,-490.0,0.00028767,3]
[368486536,1751190693510,-490.0,0.00028767,3]
[368486537,1751190693521,-490.0,0.00028767,3]
[368486538,1751190693531,-490.0,0.00028767,3]
[368486539,1751190693540,-490.0,0.00028767,3]
[368486540,1751190693550,-490.0,0.00028767,3]
[368486541,1751190693561,-490.0,0.00028767,3]
[368486542,1751190693571,-1529.36,0.00028767,3]
[368486543,1751190693581,-490.0,0.00028767,3]
[368486544,1751190693591,-490.0,0.00028767,3]
[368486545,1751190693601,-490.0,0.00028767,3]
[368486546,1751190693611,-490.0,0.00028767,3]
[368486547,1751190693622,-725.47,0.00028767,3]
[368486548,1751190693632,-167.777922,0.00028767,3]
[368486549,1751190693642,-490.0,0.00028767,3]
[368486550,1751190693653,-490.0,0.00028767,3]
[368486551,1751190693664,-490.0,0.00028767,3]
[368486552,1751190693674,-490.0,0.00028767,3]
[368486553,1751190693685,-490.0,0.00028767,3]
[368486554,1751190693695,-490.0,0.00028767,3]
[368486555,1751190693705,-1837.93,0.00028767,3]
[368486556,1751190693716,-490.0,0.00028767,3]
[368486557,1751190693726,-490.0,0.00028767,3]
[368486558,1751190693737,-677.59,0.00028767,3]
[368486559,1751190693747,-961.81,0.00028767,3]
[368486560,1751190693758,-490.0,0.00028767,3]
[368486561,1751190693768,-490.0,0.00028767,3]
[368486562,1751190693778,-633.74600302,0.00028767,3]
[368486563,1751190693789,-811.6,0.00028767,3]
[368486564,1751190693799,-701.76,0.00028767,3]
[368486565,1751190693809,-490.0,0.00028767,3]
[368486566,1751190693820,-801.55,0.00028767,3]
[368486567,1751190693831,-490.0,0.00028767,3]
[368486568,1751190693841,-490.0,0.00028767,3]
[368486569,1751190693851,-493.56,0.00028767,3]
[368486570,1751190693861,-490.0,0.00028767,3]
[368486571,1751190693871,-490.0,0.00028767,3]
[368486572,1751190693882,-490.0,0.00028767,3]
[368486573,1751190693892,-490.0,0.00028767,3]
[368486574,1751190693902,-490.0,0.00028767,3]
[368486575,1751190693913,-490.0,0.00028767,3]
[368486576,1751190693923,-930.82,0.00028767,3]
[368486577,1751190693935,-740.41,0.00028767,3]
[368486578,1751190693945,-1134.82,0.00028767,3]
[368486579,1751190693956,-629.08,0.00028767,3]
[368486580,1751190693967,-507.56,0.00028767,3]
[368486581,1751190693977,-490.0,0.00028767,3]
[368486582,1751190693987,-490.0,0.00028767,3]
[368486583,1751190693997,-490.0,0.00028767,3]
[368486584,1751190694008,-508.09,0.00028767,3]
[368486585,1751190694018,-242.17138301,0.00028767,3]
[368486586,1751190694028,-1395.58,0.00028767,3]
[368486587,1751190694038,-596.83,0.00028767,3]
[368486588,1751190694048,-516.57,0.00028767,3]
[368486589,1751190694058,-2015.14,0.00028767,3]
[368486590,1751190694068,-1527.96,0.00028767,3]
[368486591,1751190694078,-490.0,0.00028767,3]
[368486592,1751190694088,-490.0,0.00028767,3]
[368486593,1751190694100,-281.53685486,0.00028767,3]
[368486594,1751190694110,-615.0,0.00028767,3]
[368486595,1751190694120,-490.0,0.00028767,3]
[368486596,1751190694130,-490.0,0.00028767,3]
[368486597,1751190694140,-490.0,0.00028767,3]
[368486598,1751190694150,-889.47,0.00028767,3]
[368486599,1751190694160,-490.0,0.00028767,3]
[368486600,1751190694170,-2302.9,0.00028767,3]
[368486601,1751190694180,-490.0,0.00028767,3]
[368486602,1751190694192,-490.0,0.00028767,3]
[368486603,1751190694203,-490.0,0.00028767,3]
[368486604,1751190694213,-743.01,0.00028767,3]
[368486605,1751190694223,-490.0,0.00028767,3]
[368486606,1751190694235,-945.27,0.00028767,3]
[368486607,1751190694245,-643.27,0.00028767,3]
[368486608,1751190694254,-490.0,0.00028767,3]
[368486609,1751190694264,-1940.61,0.00028767,3]
[368486610,1751190694274,-1952.95,0.00028767,3]
[368486611,1751190694284,-1201.96,0.00028767,3]
[368486612,1751190694294,-1310.06,0.00028767,3]
[368486613,1751190694304,-490.0,0.00028767,3]
[368486614,1751190694314,-369.84,0.00028767,3]
[368486615,1751190694324,-490.0,0.00028767,3]
[368486616,1751190694336,-1125.22,0.00028767,3]
[368486617,1751190694346,-1224.35,0.00028767,3]
[368486618,1751190694356,-490.0,0.00028767,3]
[368486619,1751190694366,-976.06,0.00028767,3]
[368486620,1751190694377,-728.8,0.00028767,3]
[368486621,1751190694387,-749.58,0.00028767,3]
[368486622,1751190694397,-957.88,0.00028767,3]
[368486623,1751190694407,-1824.88,0.00028767,3]
[368486624,1751190694417,-490.0,0.00028767,3]
[368486625,1751190694428,-603.75,0.00028767,3]
[368486626,1751190694438,-490.0,0.00028767,3]
[368486627,1751190694448,-490.0,0.00028767,3]
[368486628,1751190694458,-490.0,0.00028767,3]
[368486629,1751190694468,-490.0,0.00028767,3]
[368486630,1751190694478,-538.77,0.00028767,3]
[368486631,1751190694487,-776.78,0.00028767,3]
[368486632,1751190694497,-960.82,0.00028767,3]
[368486633,1751190694507,-894.84,0.00028767,3]
[368486634,1751190694516,-490.0,0.00028767,3]
[368486635,1751190694526,-490.0,0.00028767,3]
[368486636,1751190694535,-490.0,0.00028767,3]
[368486637,1751190694545,-1904.77,0.00028767,3]
[368486638,1751190694555,-490.0,0.00028767,3]
[368486639,1751190694564,-490.0,0.00028767,3]
[368486640,1751190694574,-490.0,0.00028767,3]
[368486641,1751190694584,-1462.39,0.00028767,3]
[368486642,1751190694593,-2300.89,0.00028767,3]
[368486643,1751190694603,-490.0,0.00028767,3]
[368486644,1751190694613,-694.52,0.00028767,3]
[368486645,1751190694623,-650.78,0.00028767,3]
[368486646,1751190694632,-490.0,0.00028767,3]
[368486647,1751190694642,-2228.41,0.00028767,3]
[368486648,1751190694652,-490.0,0.00028767,3]
[368486649,1751190694661,-490.0,0.00028767,3]
[368486650,1751190694672,-1649.19,0.00028767,3]
[368486651,1751190694682,-490.0,0.00028767,3]
[368486652,1751190694691,-2026.94,0.00028767,3]
[368486653,1751190694701,-490.0,0.00028767,3]
[368486654,1751190694711,-843.7,0.00028767,3]
[368486655,1751190694721,-490.0,0.00028767,3]
[368486656,1751190694731,-490.0,0.00028767,3]
[368486657,1751190694741,-490.0,0.00028767,3]
[368486658,1751190694751,-490.0,0.00028767,3]
[368486659,1751190694760,-490.0,0.00028767,3]
[368486660,1751190694770,-490.0,0.00028767,3]
[368486661,1751190694780,-571.61,0.00028767,3]
[368486662,1751190694790,-490.0,0.00028767,3]
[368486663,1751190694800,-1556.08,0.00028767,3]
[368486664,1751190694811,-490.0,0.00028767,3]
[368486665,1751190694820,-896.97,0.00028767,3]
[368486666,1751190694830,-490.0,0.00028767,3]
[368486667,1751190694840,-594.67,0.00028767,3]
[368486668,1751190694849,-1147.84,0.00028767,3]
[368486669,1751190694859,-490.0,0.00028767,3]
[368486670,1751190694869,-1027.62,0.00028767,3]
[368486671,1751190694878,-707.16,0.00028767,3]
[368486672,1751190694892,-500.0,0.00028767,3]
[368486673,1751190694914,-792.35,0.00028767,3]
[368486674,1751190694936,-490.0,0.00028767,3]
[368486675,1751190694958,-880.72,0.00028767,3]
[368486676,1751190694981,-490.0,0.00028767,3]
[368486677,1751190695311,-490.0,0.00028767,3]
[368486678,1751190695342,-490.0,0.00028767,3]
[368486679,1751190695352,-490.0,0.00028767,3]
[368486680,1751190695361,-780.47,0.00028767,3]
[368486681,1751190695370,-490.0,0.00028767,3]
[368486682,1751190695383,-560.33,0.00028767,3]
[368486683,1751190695392,-525.19,0.00028767,3]
[368486684,1751190695402,-944.59,0.00028767,3]
[368486685,1751190695413,-490.0,0.00028767,3]
[368486686,1751190695423,-1653.81,0.00028767,3]
[368486687,1751190695432,-490.0,0.00028767,3]
[368486688,1751190695443,-1620.77,0.00028767,3]
[368486689,1751190695452,-1900.77,0.00028767,3]
[368486690,1751190695462,-153.56947964,0.00028767,3]
[368486691,1751190695471,-490.0,0.00028767,3]
[368486692,1751190695481,-490.0,0.00028767,3]
[368486693,1751190695490,-521.24,0.00028767,3]
[368486694,1751190695500,-1487.61,0.00028767,3]
[368486695,1751190695510,-1556.78,0.00028767,3]
[368486696,1751190695519,-1633.03,0.00028767,3]
[368486697,1751190695529,-1046.71,0.00028767,3]
[368486698,1751190695538,-490.0,0.00028767,3]
[368486699,1751190695547,-506.3,0.00028767,3]
[368486700,1751190695557,-1936.24,0.00028767,3]
[368486701,1751190695566,-514.5,0.00028767,3]
[368486702,1751190695575,-490.0,0.00028767,3]
[368486703,1751190695585,-153.88708134,0.00028767,3]
[368486704,1751190695594,-2262.43,0.00028767,3]
[368486705,1751190695603,-665.95,0.00028767,3]
[368486706,1751190695613,-2474.6,0.00028767,3]
[368486707,1751190695622,-689.16,0.00028767,3]
[368486708,1751190695632,-1268.88,0.00028767,3]
[368486709,1751190695641,-490.0,0.00028767,3]
[368486710,1751190695651,-566.98990747,0.00028767,3]
[368486711,1751190695660,-858.86,0.00028767,3]
[368486712,1751190695670,-1400.07,0.00028767,3]
[368486713,1751190695679,-490.0,0.00028767,3]
[368486714,1751190695689,-490.0,0.00028767,3]
[368486715,1751190695698,-730.59,0.00028767,3]
[368486716,1751190695707,-666.33,0.00028767,3]
[368486717,1751190695717,-1700.28,0.00028767,3]
[368486718,1751190695726,-818.45,0.00028767,3]
[368486719,1751190695736,-709.17,0.00028767,3]
[368486720,1751190695745,-1024.15,0.00028767,3]
[368486721,1751190695755,-490.0,0.00028767,3]
[368486722,1751190695765,-2038.87,0.00028767,3]
[368486723,1751190695774,-1027.52,0.00028767,3]
[368486724,1751190695783,-490.0,0.00028767,3]
[368486725,1751190695792,-534.02,0.00028767,3]
[368486726,1751190695801,-2394.84,0.00028767,3]
[368486727,1751190695810,-490.0,0.00028767,3]
[368486728,1751190695819,-1561.51,0.00028767,3]
[368486729,1751190695828,-490.0,0.00028767,3]
[368486730,1751190695837,-490.0,0.00028767,3]
[368486731,1751190695847,-490.0,0.00028767,3]
[368486732,1751190695856,-1167.05,0.00028767,3]
[368486733,1751190695866,-899.19,0.00028767,3]
[368486734,1751190695875,-935.31,0.00028767,3]
[368486735,1751190695884,-771.06,0.00028767,3]
[368486736,1751190695893,-610.33,0.00028767,3]
[368486737,1751190695902,-490.0,0.00028767,3]
[368486738,1751190695912,-236.47598436,0.00028767,3]
[368486739,1751190695921,-715.86,0.00028767,3]
[368486740,1751190695930,-1503.84,0.00028767,3]
[368486741,1751190695939,-212.86147029,0.00028767,3]
[368486742,1751190695948,-1626.28,0.00028767,3]
[368486743,1751190695960,-566.4,0.00028767,3]
[368486744,1751190695969,-934.93,0.00028767,3]
[368486745,1751190695978,-490.0,0.00028767,3]
[368486746,1751190695987,-516.29,0.00028767,3]
[368486747,1751190695997,-589.35,0.00028767,3]
[368486748,1751190696007,-2211.02,0.00028767,3]
[368486749,1751190696015,-1313.26,0.00028767,3]
[368486750,1751190696025,-878.98,0.00028767,3]
[368486751,1751190696036,-2018.3,0.00028767,3]
[368486752,1751190696046,-490.0,0.00028767,3]
[368486753,1751190696055,-490.0,0.00028767,3]
[368486754,1751190696064,-1320.46,0.00028767,3]
[368486755,1751190696074,-490.0,0.00028767,3]
[368486756,1751190696084,-1272.1,0.00028767,3]
[368486757,1751190696094,-2254.95,0.00028767,3]
[368486758,1751190696103,-490.0,0.00028767,3]
[368486759,1751190696113,-490.0,0.00028767,3]
[368486760,1751190696123,-490.0,0.00028767,3]
[368486761,1751190696133,-801.49,0.00028767,3]
[368486762,1751190696143,-793.92,0.00028767,3]
[368486763,1751190696152,-1409.04,0.00028767,3]
[368486764,1751190696161,-566.98,0.00028767,3]
[368486765,1751190696171,-855.39,0.00028767,3]
[368486766,1751190696181,-520.23,0.00028767,3]
[368486767,1751190696191,-1383.19,0.00028767,3]
[368486768,1751190696200,-503.31,0.00028767,3]
[368486769,1751190696209,-490.0,0.00028767,3]
[368486770,1751190696218,-490.0,0.00028767,3]
[368486771,1751190696227,-490.0,0.00028767,3]
[368486772,1751190696237,-1411.93,0.00028767,3]
[368486773,1751190696246,-490.0,0.00028767,3]
[368486774,1751190696257,-907.17,0.00028767,3]
[368486775,1751190696266,-1733.55,0.00028767,3]
[368486776,1751190696276,-490.0,0.00028767,3]
[368486777,1751190696286,-490.0,0.00028767,3]
[368486778,1751190696295,-490.0,0.00028767,3]
[368486779,1751190696304,-1161.29,0.00028767,3]
[368486780,1751190696315,-490.0,0.00028767,3]
[368486781,1751190696338,-490.0,0.00028767,3]
[368486782,1751190696360,-490.0,0.00028767,3]
[368486783,1751190696382,-648.19,0.00028767,3]
[368486784,1751190696405,-664.2,0.00028767,3]
[368486785,1751190696429,-492.59,0.00028767,3]
[368486786,1751190696456,-1411.98,0.00028767,3]
[368486787,1751190696482,-490.0,0.00028767,3]
[368486788,1751190696506,-1476.05,0.00028767,3]
[368486789,1751190696529,-490.0,0.00028767,3]
[368486790,1751190696552,-490.0,0.00028767,3]
[368486791,1751190696576,-497.95084285,0.00028767,3]
[368486792,1751190696600,-490.0,0.00028767,3]
[368486793,1751190696610,-490.0,0.00028767,3]
[368486794,1751190696619,-2483.68,0.00028767,3]
[368486795,1751190696629,-1539.15,0.00028767,3]
[368486796,1751190696638,-490.0,0.00028767,3]
[368486797,1751190696648,-622.78,0.00028767,3]
[368486798,1751190696657,-2320.44,0.00028767,3]
[368486799,1751190696667,-490.0,0.00028767,3]
[368486800,1751190696677,-894.95,0.00028767,3]
[368486801,1751190696687,-701.41,0.00028767,3]
[368486802,1751190696696,-1005.08,0.00028767,3]
[368486803,1751190696705,-526.1,0.00028767,3]
[368486804,1751190696715,-490.0,0.00028767,3]
[368486805,1751190696724,-1032.78,0.00028767,3]
[368486806,1751190696733,-490.0,0.00028767,3]
[368486807,1751190696743,-1199.97,0.00028767,3]
[368486808,1751190696753,-1283.76,0.00028767,3]
[368486809,1751190696762,-549.61,0.00028767,3]
[368486810,1751190696772,-490.0,0.00028767,3]
[368486811,1751190696781,-490.0,0.00028767,3]
[368486812,1751190696790,-901.15,0.00028767,3]
[368486813,1751190696799,-545.6,0.00028767,3]
[368486814,1751190696808,-841.45,0.00028767,3]
[368486815,1751190696818,-1956.7,0.00028767,3]
[368486816,1751190696827,-525.0,0.00028767,3]
[368486817,1751190696837,-908.9,0.00028767,3]
[368486818,1751190696846,-490.0,0.00028767,3]
[368486819,1751190696855,-1559.17,0.00028767,3]
[368486820,1751190696864,-490.0,0.00028767,3]
[368486821,1751190696874,-772.36,0.00028767,3]
[368486822,1751190696883,-1731.31,0.00028767,3]
[368486823,1751190696893,-165.98260546,0.00028767,3]
[368486824,1751190696902,-490.0,0.00028767,3]
[368486825,1751190696912,-1241.41,0.00028767,3]
[368486826,1751190696921,-490.0,0.00028767,3]
[368486827,1751190696930,-2257.75,0.00028767,3]
[368486828,1751190696940,-1736.54,0.00028767,3]
[368486829,1751190696949,-2325.03,0.00028767,3]
[368486830,1751190696959,-613.43,0.00028767,3]
[368486831,1751190696969,-570.9600169,0.00028767,3]
[368486832,1751190696978,-1117.78,0.00028767,3]
[368486833,1751190696988,-1022.6,0.00028767,3]
[368486834,1751190696998,-896.69,0.00028767,3]
[368486835,1751190697009,-490.0,0.00028767,3]
[368486836,1751190697019,-998.0,0.00028767,3]
[368486837,1751190697028,-490.0,0.00028767,3]
[368486838,1751190697038,-490.0,0.00028767,3]
[368486839,1751190697048,-490.0,0.00028767,3]
[368486840,1751190697058,-1382.19,0.00028767,3]
[368486841,1751190697067,-490.0,0.00028767,3]
[368486842,1751190697078,-1087.69,0.00028767,3]
[368486843,1751190697087,-490.0,0.00028767,3]
[368486844,1751190697097,-937.32,0.00028767,3]
[368486845,1751190697106,-490.0,0.00028767,3]
[368486846,1751190697116,-490.0,0.00028767,3]
[368486847,1751190697126,-490.0,0.00028767,3]
[368486848,1751190697135,-490.0,0.00028767,3]
[368486849,1751190697146,-490.0,0.00028767,3]
[368486850,1751190697156,-2003.29,0.00028767,3]
[368486851,1751190697165,-1073.82,0.00028767,3]
[368486852,1751190697174,-1428.66,0.00028767,3]
[368486853,1751190697184,-490.0,0.00028767,3]
[368486854,1751190697193,-906.56,0.00028767,3]
[368486855,1751190697203,-490.0,0.00028767,3]
[368486856,1751190697212,-751.94,0.00028767,3]
[368486857,1751190697221,-1284.2,0.00028767,3]
[368486858,1751190697230,-995.73,0.00028767,3]
[368486859,1751190697240,-730.89,0.00028767,3]
[368486860,1751190697249,-490.0,0.00028767,3]
[368486861,1751190697259,-490.0,0.00028767,3]
[368486862,1751190697268,-490.0,0.00028767,3]
[368486863,1751190697278,-490.0,0.00028767,3]
[368486864,1751190697288,-490.0,0.00028767,3]
[368486865,1751190697297,-490.0,0.00028767,3]
[368486866,1751190697306,-490.0,0.00028767,3]
[368486867,1751190697315,-490.0,0.00028767,3]
[368486868,1751190697325,-3819.49,0.00028767,3]
[368486869,1751190697335,-614.58,0.00028767,3]
[368486870,1751190697347,-2099.43,0.00028767,3]
[368486871,1751190697356,-591.09,0.00028767,3]
[368486872,1751190697366,-490.0,0.00028767,3]
[368486873,1751190697375,-490.0,0.00028767,3]
[368486874,1751190697386,-490.0,0.00028767,3]
[368486875,1751190697395,-1763.09,0.00028767,3]
[368486876,1751190697405,-1553.22,0.00028767,3]
[368486877,1751190697415,-930.34,0.00028767,3]
[368486878,1751190697424,-587.32,0.00028767,3]
[368486879,1751190697433,-1288.37,0.00028767,3]
[368486880,1751190697442,-490.0,0.00028767,3]
[368486881,1751190697452,-4450.47,0.00028767,3]
[368486882,1751190697462,-935.65,0.00028767,3]
[368486883,1751190697471,-891.46,0.00028767,3]
[368486884,1751190697480,-490.0,0.00028767,3]
[368486885,1751190697490,-490.0,0.00028767,3]
[368486886,1751190697499,-854.31,0.00028767,3]
[368486887,1751190697508,-490.0,0.00028767,3]
[368486888,1751190697518,-959.78,0.00028767,3]
[368486889,1751190697527,-528.19,0.00028767,3]
[368486890,1751190697537,-490.0,0.00028767,3]
[368486891,1751190697546,-537.86031643,0.00028767,3]
[368486892,1751190697556,-490.0,0.00028767,3]
[368486893,1751190697565,-490.0,0.00028767,3]
[368486894,1751190697574,-766.16,0.00028767,3]
[368486895,1751190697583,-1065.99,0.00028767,3]
[368486896,1751190697592,-1454.99,0.00028767,3]
[368486897,1751190697602,-490.0,0.00028767,3]
[368486898,1751190697613,-1177.8,0.00028767,3]
[368486899,1751190697622,-490.0,0.00028767,3]
[368486900,1751190697631,-490.0,0.00028767,3]
[368486901,1751190697641,-921.89,0.00028767,3]
[368486902,1751190697650,-1049.98,0.00028767,3]
[368486903,1751190697659,-490.0,0.00028767,3]
[368486904,1751190697669,-603.29,0.00028767,3]
[368486905,1751190697677,-490.0,0.00028767,3]
[368486906,1751190697687,-500.0002021,0.00028767,3]
[368486907,1751190697696,-1101.22,0.00028767,3]
[368486908,1751190697705,-490.0,0.00028767,3]
[368486909,1751190697715,-490.0,0.00028767,3]
[368486910,1751190697724,-555.36,0.00028767,3]
[368486911,1751190697733,-490.0,0.00028767,3]
[368486912,1751190697743,-1690.83,0.00028767,3]
[368486913,1751190697752,-490.0,0.00028767,3]
[368486914,1751190697848,-608.46,0.00028767,3]
[368486915,1751190697858,-494.25,0.00028767,3]
[368486916,1751190697867,-916.39,0.00028767,3]
[368486917,1751190697876,-698.3,0.00028767,3]
[368486918,1751190697885,-573.71,0.00028767,3]
[368486919,1751190697894,-490.0,0.00028767,3]
[368486920,1751190697903,-1394.52,0.00028767,3]
[368486921,1751190697913,-498.19740317,0.00028767,3]